fUST/lending_fUST_20250831
["ID","MTS","AMOUNT","RATE_DAILY","PERIOD"]
[382337162,1756581043363,-480.0,0.00019178,2]
[382337163,1756581043373,-480.0,0.00019178,2]
[382337165,1756581043382,-1100.13,0.00019178,2]
[382337168,1756581043394,-480.0,0.00019178,2]
[382337169,1756581043403,-1483.44,0.00019178,2]
[382337171,1756581043413,-573.36,0.00019178,2]
[382337173,1756581043422,-687.64,0.00019178,2]
[382337175,1756581043431,-370.24640488,0.00019178,2]
[382337177,1756581043440,-480.0,0.00019178,2]
[382337179,1756581043449,-803.63,0.00019178,2]
[382337181,1756581043458,-572.22156623,0.00019178,2]
[382337183,1756581043468,-480.0,0.00019178,2]
[382337185,1756581043477,-480.0,0.00019178,2]
[382337187,1756581043487,-641.02,0.00019178,2]
[382337189,1756581043496,-480.0,0.00019178,2]
[382337191,1756581043505,-480.0,0.00019178,2]
[382337195,1756581043515,-1061.11,0.00019178,2]
[382337197,1756581043524,-1903.66,0.00019178,2]
[382337198,1756581043533,-480.0,0.00019178,2]
[382337201,1756581043543,-1541.18,0.00019178,2]
[382337203,1756581043552,-201.50392124,0.00019178,2]
[382337205,1756581043562,-480.0,0.00019178,2]
[382337207,1756581043571,-480.0,0.00019178,2]
[382337209,1756581043580,-151.0,0.00019178,2]
[382337211,1756581043589,-480.0,0.00019178,2]
[382337213,1756581043598,-480.0,0.00019178,2]
[382337215,1756581043608,-151.0,0.00019178,2]
[382337217,1756581043619,-151.0,0.00019178,2]
[382337219,1756581043630,-151.0,0.00019178,2]
[382337221,1756581043640,-480.0,0.00019178,2]
[382337224,1756581043650,-2011.08,0.00019178,2]
[382337225,1756581043660,-1746.06,0.00019178,2]
[382337226,1756581043669,-151.0,0.00019178,2]
[382337227,1756581043679,-151.0,0.00019178,2]
[382337228,1756581043689,-597.75,0.00019178,2]
[382337229,1756581043699,-151.0,0.00019178,2]
[382337230,1756581043708,-1050.56,0.00019178,2]
[382337231,1756581043718,-480.0,0.00019178,2]
[382337232,1756581043728,-480.0,0.00019178,2]
[382337233,1756581043738,-480.0,0.00019178,2]
[382337234,1756581043747,-480.0,0.00019178,2]
[382337235,1756581043756,-480.0,0.00019178,2]
[382337236,1756581043765,-480.0,0.00019178,2]
[382337237,1756581043775,-639.9,0.00019178,2]
[382337238,1756581043784,-1513.61,0.00019178,2]
[382337239,1756581043794,-480.0,0.00019178,2]
[382337240,1756581043803,-480.0,0.00019178,2]
[382337241,1756581043812,-480.0,0.00019178,2]
[382337242,1756581043822,-480.0,0.00019178,2]
[382337243,1756581043832,-480.83275968,0.00019178,2]
[382337244,1756581043841,-773.34,0.00019178,2]
[382337245,1756581043851,-480.0,0.00019178,2]
[382337246,1756581043860,-480.0,0.00019178,2]
[382337247,1756581043870,-480.0,0.00019178,2]
[382337248,1756581043879,-1443.49,0.00019178,2]
[382337249,1756581043889,-235.896126,0.00019178,2]
[382337250,1756581043899,-480.0,0.00019178,2]
[382337251,1756581043908,-480.0,0.00019178,2]
[382337252,1756581043918,-519.44,0.00019178,2]
[382337253,1756581043927,-527.23,0.00019178,2]
[382337254,1756581043936,-832.28,0.00019178,2]
[382337255,1756581043946,-480.0,0.00019178,2]
[382337256,1756581043955,-835.86,0.00019178,2]
[382337257,1756581043964,-955.47,0.00019178,2]
[382337258,1756581043973,-1690.51,0.00019178,2]
[382337259,1756581043983,-1621.45,0.00019178,2]
[382337260,1756581043994,-480.0,0.00019178,2]
[382337261,1756581044003,-480.0,0.00019178,2]
[382337263,1756581044012,-654.77,0.00019178,2]
[382337264,1756581044022,-480.0,0.00019178,2]
[382337267,1756581044031,-480.0,0.00019178,2]
[382337270,1756581044040,-565.42,0.00019178,2]
[382337272,1756581044050,-480.0,0.00019178,2]
[382337274,1756581044059,-480.0,0.00019178,2]
[382337276,1756581044068,-1437.44,0.00019178,2]
[382337278,1756581044078,-480.0,0.00019178,2]
[382337281,1756581044087,-480.0,0.00019178,2]
[382337284,1756581044096,-480.0,0.00019178,2]
[382337287,1756581044106,-480.0,0.00019178,2]
[382337290,1756581044115,-501.1,0.00019178,2]
[382337293,1756581044124,-458.81854932,0.00019178,2]
[382337296,1756581044134,-480.0,0.00019178,2]
[382337299,1756581044143,-480.0,0.00019178,2]
[382337302,1756581044153,-842.29,0.00019178,2]
[382337305,1756581044162,-480.0,0.00019178,2]
[382337307,1756581044171,-342.58684665,0.00019178,2]
[382337309,1756581044180,-480.0,0.00019178,2]
[382337311,1756581044189,-522.58,0.00019178,2]
[382337313,1756581044200,-480.0,0.00019178,2]
[382337315,1756581044209,-480.0,0.00019178,2]
[382337317,1756581044219,-480.0,0.00019178,2]
[382337319,1756581044229,-1905.69,0.00019178,2]
[382337321,1756581044238,-480.0,0.00019178,2]
[382337324,1756581044251,-480.0,0.00019178,2]
[382337326,1756581044261,-480.0,0.00019178,2]
[382337328,1756581044271,-812.73,0.00019178,2]
[382337330,1756581044280,-480.0,0.00019178,2]
[382337332,1756581044292,-481.75159348,0.00019178,2]
[382337334,1756581044302,-1643.98,0.00019178,2]
[382337336,1756581044313,-480.0,0.00019178,2]
[382337338,1756581044323,-480.0,0.00019178,2]
[382337340,1756581044333,-480.0,0.00019178,2]
[382337342,1756581044343,-775.62,0.00019178,2]
[382337344,1756581044353,-542.19,0.00019178,2]
[382337346,1756581044364,-757.02,0.00019178,2]
[382337348,1756581044374,-480.0,0.00019178,2]
[382337350,1756581044384,-1374.14,0.00019178,2]
[382337352,1756581044394,-164.54971832,0.00019178,2]
[382337354,1756581044404,-480.0,0.00019178,2]
[382337356,1756581044413,-480.0,0.00019178,2]
[382337358,1756581044423,-801.82,0.00019178,2]
[382337360,1756581044434,-480.0,0.00019178,2]
[382337363,1756581044443,-480.0,0.00019178,2]
[382337364,1756581044453,-480.0,0.00019178,2]
[382337366,1756581044462,-480.0,0.00019178,2]
[382337368,1756581044472,-480.0,0.00019178,2]
[382337370,1756581044482,-1326.8,0.00019178,2]
[382337372,1756581044491,-480.0,0.00019178,2]
[382337374,1756581044501,-480.0,0.00019178,2]
[382337376,1756581044510,-2094.77,0.00019178,2]
[382337378,1756581044519,-759.53,0.00019178,2]
[382337380,1756581044529,-480.0,0.00019178,2]
[382337382,1756581044538,-501.37,0.00019178,2]
[382337384,1756581044548,-480.0,0.00019178,2]
[382337386,1756581044558,-2306.89,0.00019178,2]
[382337388,1756581044567,-500.0,0.00019178,2]
[382337390,1756581044577,-602.84,0.00019178,2]
[382337392,1756581044587,-480.0,0.00019178,2]
[382337394,1756581044597,-480.0,0.00019178,2]
[382337396,1756581044607,-2618.48,0.00019178,2]
[382337398,1756581044616,-127.19566193,0.00019178,2]
[382337437,1756581044993,-352.80433807,0.00019178,2]
[382337439,1756581045002,-480.0,0.00019178,2]
[382337441,1756581045013,-480.0,0.00019178,2]
[382337443,1756581045023,-598.05,0.00019178,2]
[382337445,1756581045033,-637.54,0.00019178,2]
[382337447,1756581045043,-480.0,0.00019178,2]
[382337449,1756581045052,-480.0,0.00019178,2]
[382337450,1756581045063,-500.0,0.00019178,2]
[382337452,1756581045072,-480.0,0.00019178,2]
[382337454,1756581045081,-480.0,0.00019178,2]
[382337456,1756581045091,-480.0,0.00019178,2]
[382337459,1756581045100,-1113.58,0.00019178,2]
[382337460,1756581045110,-480.0,0.00019178,2]
[382337462,1756581045119,-480.0,0.00019178,2]
[382337464,1756581045128,-480.0,0.00019178,2]
[382337466,1756581045138,-480.0,0.00019178,2]
[382337468,1756581045147,-480.0,0.00019178,2]
[382337470,1756581045163,-480.0,0.00019178,2]
[382337472,1756581045176,-269.41665767,0.00019178,2]
[382337474,1756581045186,-480.0,0.00019178,2]
[382337476,1756581045196,-1966.74,0.00019178,2]
[382337478,1756581045206,-781.7,0.00019178,2]
[382337480,1756581045215,-1389.06,0.00019178,2]
[382337482,1756581045224,-969.79,0.00019178,2]
[382337484,1756581045233,-480.0,0.00019178,2]
[382337486,1756581045243,-570.26,0.00019178,2]
[382337488,1756581045252,-480.0,0.00019178,2]
[382337490,1756581045262,-480.0,0.00019178,2]
[382337492,1756581045271,-680.99,0.00019178,2]
[382337494,1756581045280,-480.0,0.00019178,2]
[382337496,1756581045290,-1360.9,0.00019178,2]
[382337498,1756581045299,-1031.83,0.00019178,2]
[382337500,1756581045310,-4209.22,0.00019178,2]
[382337502,1756581045319,-508.45,0.00019178,2]
[382337504,1756581045328,-480.0,0.00019178,2]
[382337506,1756581045337,-480.0,0.00019178,2]
[382337508,1756581045346,-480.0,0.00019178,2]
[382337510,1756581045355,-652.18,0.00019178,2]
[382337512,1756581045365,-480.0,0.00019178,2]
[382337514,1756581045375,-2261.0860981,0.00019178,2]
[382337517,1756581045388,-14.1139019,0.00019178,2]
[382337519,1756581045398,-165.42520891,0.00019178,2]
[382337520,1756581045408,-480.0,0.00019178,2]
[382337522,1756581045417,-581.0,0.00019178,2]
[382337524,1756581045428,-626.55,0.00019178,2]
[382337526,1756581045438,-12.86088383,0.00019178,2]
[382337529,1756581045450,-467.13911617,0.00019178,2]
[382337531,1756581045460,-536.34088383,0.00019178,2]
[382337591,1756581045978,-255.00000001,0.00019071,2]
[382337630,1756581046362,-162.15472784,0.00019071,2]
[382337632,1756581046373,-210.32521807,0.00019178,2]
[382337977,1756581049840,-205.82930249,0.00019078,2]
[382338158,1756581052750,-11.93916669,0.00019078,2]
[382338162,1756581052772,-217.76846914,0.00019147,2]
[382338165,1756581052796,-54.52211265,0.00019177,2]
[382340887,1756581081299,-198.54325593,0.00019173,2]
[382341086,1756581083362,-225.0987755,0.00019173,2]
[382342312,1756581116846,418.1381699,0.00018183,2]
[382342314,1756581144023,153.544637,0.00024,30]
[382342315,1756581144326,153.544637,0.00024,30]
[382342316,1756581156417,153.26485,0.00024,30]
[382342318,1756581262097,459.788466,0.00013699,2]
[382342320,1756581743112,153.544637,0.00024,30]
[382342321,1756581759039,153.26485,0.00024,30]
[382342322,1756581796535,-189.11977243,0.00019068,2]
[382342323,1756581799383,-159.49164245,0.00019068,2]
[382342324,1756581801355,-57.85812928,0.00019068,2]
[382342325,1756581801376,-110.88022757,0.00019068,2]
[382342326,1756581801397,-0.22056238,0.00019069,2]
[382342327,1756581802836,-425.43626001,0.00019069,2]
[382342328,1756581802858,-1.61842042,0.00019069,2]
[382342329,1756581804503,-351.8776903,0.00019067,2]
[382342330,1756581807110,-301.59513655,0.00019067,2]
[382342331,1756581810831,-183.28086761,0.00019067,2]
[382342332,1756581914741,-219.89239373,0.00019064,2]
[382342333,1756581916642,-290.89535144,0.00019064,2]
[382342334,1756581918266,-220.21225483,0.00019064,2]
[382342335,1756581918291,-79.78774517,0.00019064,2]
[382342336,1756581920498,-220.21225483,0.00019064,2]
[382342337,1756581920524,-28.95897669,0.00019065,2]
[382342338,1756581922919,-180.97037585,0.00019065,2]
[382342339,1756581925081,-270.86907218,0.00019065,2]
[382342340,1756581948703,-355.22610399,0.00019063,2]
[382342341,1756581950253,-222.12042826,0.00019063,2]
[382342342,1756581952557,-276.7311791,0.00019063,2]
[382342343,1756581954142,-480.0,0.00019063,2]
[382342346,1756581956896,-241.18059192,0.00019063,2]
[382342347,1756581958534,-190.89508705,0.00019063,2]
[382342348,1756581961275,-172.3908357,0.00019063,2]
[382342349,1756581968879,-268.16717598,0.00019063,2]
[382342350,1756581971069,-229.8203481,0.00019065,2]
[382342351,1756581973878,-156.22643591,0.00019063,2]
[382342352,1756581978065,-361.56423042,0.00019063,2]
[382342354,1756581981244,-202.77507879,0.00019063,2]
[382342355,1756581982875,-279.54054092,0.00019063,2]
[382342356,1756581985190,-191.38124444,0.00019063,2]
[382342357,1756581987965,-236.94516292,0.00019063,2]
[382342358,1756581990767,-151.37659072,0.00019063,2]
[382342359,1756581993069,-151.34458855,0.00019063,2]
[382342360,1756581995132,-266.99393775,0.00019063,2]
[382342361,1756581997352,-207.8141755,0.00019063,2]
[382342362,1756582001411,-236.94516292,0.00019063,2]
[382342363,1756582024583,-466.75946888,0.00019063,2]
[382342364,1756582026249,-276.26400764,0.00019063,2]
[382342365,1756582029950,-160.59501291,0.00019063,2]
[382342366,1756582032799,-229.90672376,0.00019064,2]
[382342367,1756582035460,-220.14095777,0.00019061,2]
[382342368,1756582040034,-190.7112023,0.00019061,2]
[382342369,1756582042905,-169.27524559,0.00019061,2]
[382342370,1756582045672,-309.55653536,0.00019061,2]
[382342371,1756582045718,-10471.87507549,0.00019061,2]
[382342372,1756582045739,-70.09327624,0.00019064,2]
[382342373,1756582045761,-217.34977173,0.00019065,2]
[382342374,1756582045783,-425.65682239,0.00019065,2]
[382342375,1756582045803,-216.25802849,0.00019065,2]
[382342376,1756582045824,-232.73020027,0.00019065,2]
[382342377,1756582045845,-160.0,0.00019065,2]
[382342378,1756582045867,-529.89603018,0.00019065,2]
[382342379,1756582045887,-845.75060209,0.00019065,2]
[382342380,1756582045908,-417.15472785,0.00019065,2]
[382342381,1756582045931,-160.0,0.00019065,2]
[382342382,1756582045952,-160.0,0.00019067,2]
[382342383,1756582045974,-324.00498707,0.00019076,2]
[382342384,1756582045993,-163.32635187,0.00019078,2]
[382342385,1756582046018,-1270.27600888,0.00019078,2]
[382342386,1756582046037,-187.78006525,0.00019166,2]
[382342387,1756582046057,-439.17,0.00019168,3]
[382342388,1756582046077,-658.77,0.00019168,3]
[382342389,1756582046098,-329.38,0.00019168,3]
[382342390,1756582046119,-164.69,0.00019168,3]
[382342391,1756582046139,-494.12,0.00019168,3]
[382342392,1756582046160,-163.32635185,0.00019169,2]
[382342393,1756582046182,-500.0,0.00019173,2]
[382342394,1756582046202,-500.0,0.00019173,2]
[382342395,1756582046222,-578.10668645,0.00019173,2]
[382342396,1756582046240,-500.0,0.00019173,2]
[382342397,1756582046258,-500.0,0.00019173,2]
[382342398,1756582046278,-500.0,0.00019173,2]
[382342399,1756582046297,-500.0,0.00019173,2]
[382342400,1756582046316,-500.0,0.00019173,2]
[382342401,1756582046336,-500.0,0.00019173,2]
[382342402,1756582046355,-500.0,0.00019173,2]
[382342403,1756582046375,-500.0,0.00019173,2]
[382342404,1756582046399,-500.0,0.00019173,2]
[382342405,1756582046420,-500.0,0.00019173,2]
[382342406,1756582046444,-471.73251858,0.00019173,2]
[382342407,1756582046468,-500.0,0.00019173,2]
[382342408,1756582046492,-500.0,0.00019173,2]
[382342409,1756582046516,-500.0,0.00019173,2]
[382342410,1756582046540,-500.0,0.00019173,2]
[382342411,1756582046564,-500.0,0.00019173,2]
[382342412,1756582046587,-500.0,0.00019173,2]
[382342413,1756582046607,-500.0,0.00019173,2]
[382342414,1756582046627,-160.108,0.00019173,2]
[382342415,1756582046647,-8729.2538139,0.00019176,2]
[382342416,1756582046668,-7327.4338591,0.00019176,2]
[382342417,1756582046688,-26071.4234798,0.00019176,2]
[382342418,1756582046715,-402.13463816,0.00019177,2]
[382342419,1756582046739,-205.82930249,0.00019177,2]
[382342420,1756582046764,-284.22974848,0.00019177,2]
[382342421,1756582046788,-318.94863804,0.00019177,2]
[382342422,1756582046812,-236.94516292,0.00019177,2]
[382342423,1756582046833,-730.28086281,0.00019178,2]
[382342424,1756582046857,-480.0,0.00019178,2]
[382342425,1756582046878,-480.0,0.00019178,2]
[382342426,1756582046898,-485.4700395,0.00019178,2]
[382342427,1756582046919,-480.0,0.00019178,2]
[382342428,1756582046939,-480.0,0.00019178,2]
[382342429,1756582046959,-480.0,0.00019178,2]
[382342430,1756582046979,-480.0,0.00019178,2]
[382342431,1756582046999,-480.0,0.00019178,2]
[382342432,1756582047019,-480.0,0.00019178,2]
[382342433,1756582047041,-480.0,0.00019178,2]
[382342434,1756582047062,-480.0,0.00019178,2]
[382342435,1756582047083,-1124.37,0.00019178,2]
[382342436,1756582047104,-320.01685621,0.00019178,2]
[382342437,1756582047125,-480.0,0.00019178,2]
[382342438,1756582047145,-483.97603794,0.00019178,2]
[382342439,1756582047165,-480.0,0.00019178,2]
[382342440,1756582047185,-480.0,0.00019178,2]
[382342441,1756582047205,-613.23,0.00019178,2]
[382342442,1756582047225,-480.0,0.00019178,2]
[382342443,1756582047246,-480.0,0.00019178,2]
[382342444,1756582047265,-1010.98,0.00019178,2]
[382342445,1756582047285,-480.0,0.00019178,2]
[382342446,1756582047305,-480.0,0.00019178,2]
[382342447,1756582047325,-480.0,0.00019178,2]
[382342448,1756582047346,-480.0,0.00019178,2]
[382342449,1756582047366,-480.0,0.00019178,2]
[382342450,1756582047386,-733.76,0.00019178,2]
[382342451,1756582047407,-643.89,0.00019178,2]
[382342452,1756582047427,-480.0,0.00019178,2]
[382342453,1756582047448,-191.30450842,0.00019178,2]
[382342454,1756582047469,-480.0,0.00019178,2]
[382342455,1756582047489,-850.62,0.00019178,2]
[382342456,1756582047510,-480.0,0.00019178,2]
[382342457,1756582047532,-480.0,0.00019178,2]
[382342458,1756582047551,-480.0,0.00019178,2]
[382342459,1756582047571,-480.0,0.00019178,2]
[382342460,1756582047591,-480.0,0.00019178,2]
[382342461,1756582047612,-480.0,0.00019178,2]
[382342462,1756582047632,-514.57,0.00019178,2]
[382342463,1756582047653,-480.0,0.00019178,2]
[382342464,1756582047672,-480.0,0.00019178,2]
[382342465,1756582047691,-480.0,0.00019178,2]
[382342466,1756582047716,-578.32,0.00019178,2]
[382342467,1756582047737,-480.0,0.00019178,2]
[382342468,1756582047758,-480.0,0.00019178,2]
[382342469,1756582047780,-480.0,0.00019178,2]
[382342470,1756582047801,-1208.61,0.00019178,2]
[382342471,1756582047822,-1431.29,0.00019178,2]
[382342472,1756582047841,-752.18,0.00019178,2]
[382342473,1756582047862,-499.97,0.00019178,2]
[382342474,1756582047882,-480.0,0.00019178,2]
[382342475,1756582047902,-625.47,0.00019178,2]
[382342476,1756582047922,-480.0,0.00019178,2]
[382342477,1756582047942,-1736.74,0.00019178,2]
[382342478,1756582047962,-702.4,0.00019178,2]
[382342479,1756582047986,-480.0,0.00019178,2]
[382342480,1756582048006,-480.0,0.00019178,2]
[382342481,1756582048027,-480.0,0.00019178,2]
[382342482,1756582048047,-480.0,0.00019178,2]
[382342483,1756582048067,-480.0,0.00019178,2]
[382342484,1756582048088,-480.0,0.00019178,2]
[382342485,1756582048110,-480.0,0.00019178,2]
[382342486,1756582048132,-480.0,0.00019178,2]
[382342487,1756582048153,-732.05,0.00019178,2]
[382342488,1756582048175,-480.0,0.00019178,2]
[382342489,1756582048197,-480.0,0.00019178,2]
[382342490,1756582048219,-506.1,0.00019178,2]
[382342491,1756582048240,-480.0,0.00019178,2]
[382342492,1756582048261,-634.07,0.00019178,2]
[382342493,1756582048281,-480.0,0.00019178,2]
[382342494,1756582048301,-480.0,0.00019178,2]
[382342495,1756582048323,-480.0,0.00019178,2]
[382342496,1756582048344,-480.0,0.00019178,2]
[382342497,1756582048364,-480.0,0.00019178,2]
[382342498,1756582048548,-480.0,0.00019178,2]
[382342499,1756582048568,-1858.28,0.00019178,2]
[382342500,1756582048588,-546.49,0.00019178,2]
[382342501,1756582048609,-480.0,0.00019178,2]
[382342502,1756582048629,-446.25156577,0.00019178,2]
[382342503,1756582048649,-480.0,0.00019178,2]
[382342504,1756582048669,-1316.89,0.00019178,2]
[382342505,1756582048690,-480.0,0.00019178,2]
[382342506,1756582048711,-480.0,0.00019178,2]
[382342507,1756582048731,-500.0,0.00019178,2]
[382342508,1756582048751,-727.88,0.00019178,2]
[382342509,1756582048771,-512.56,0.00019178,2]
[382342510,1756582048790,-480.0,0.00019178,2]
[382342511,1756582048810,-480.0,0.00019178,2]
[382342512,1756582048831,-480.0,0.00019178,2]
[382342513,1756582048851,-687.59,0.00019178,2]
[382342514,1756582048871,-480.0,0.00019178,2]
[382342515,1756582048891,-420.38840629,0.00019178,2]
[382342516,1756582048911,-664.88,0.00019178,2]
[382342517,1756582048932,-480.0,0.00019178,2]
[382342518,1756582048952,-480.0,0.00019178,2]
[382342519,1756582048972,-480.0,0.00019178,2]
[382342520,1756582048992,-480.0,0.00019178,2]
[382342521,1756582049013,-480.0,0.00019178,2]
[382342522,1756582049033,-480.0,0.00019178,2]
[382342523,1756582049053,-480.0,0.00019178,2]
[382342524,1756582049073,-480.0,0.00019178,2]
[382342525,1756582049094,-599.95,0.00019178,2]
[382342526,1756582049114,-480.0,0.00019178,2]
[382342527,1756582049136,-1441.04,0.00019178,2]
[382342528,1756582049157,-301.70115672,0.00019178,2]
[382342529,1756582049178,-480.0,0.00019178,2]
[382342530,1756582049198,-596.09,0.00019178,2]
[382342531,1756582049218,-1304.2,0.00019178,2]
[382342532,1756582049240,-1265.38,0.00019178,2]
[382342533,1756582049262,-1082.87,0.00019178,2]
[382342534,1756582049282,-311.52588648,0.00019178,2]
[382342535,1756582049303,-480.0,0.00019178,2]
[382342536,1756582049324,-747.76,0.00019178,2]
[382342537,1756582049345,-480.0,0.00019178,2]
[382342538,1756582049364,-480.0,0.00019178,2]
[382342539,1756582049384,-1896.0,0.00019178,2]
[382342540,1756582049405,-480.0,0.00019178,2]
[382342541,1756582049425,-480.0,0.00019178,2]
[382342542,1756582049445,-480.0,0.00019178,2]
[382342543,1756582049464,-480.0,0.00019178,2]
[382342544,1756582049485,-480.0,0.00019178,2]
[382342545,1756582049505,-835.12,0.00019178,2]
[382342546,1756582049525,-480.0,0.00019178,2]
[382342547,1756582049545,-480.0,0.00019178,2]
[382342548,1756582049565,-480.0,0.00019178,2]
[382342549,1756582049586,-480.0,0.00019178,2]
[382342550,1756582049606,-480.0,0.00019178,2]
[382342551,1756582049627,-480.0,0.00019178,2]
[382342552,1756582049646,-480.0,0.00019178,2]
[382342553,1756582049666,-746.31,0.00019178,2]
[382342554,1756582049685,-561.71,0.00019178,2]
[382342555,1756582049709,-1643.91,0.00019178,2]
[382342556,1756582049729,-480.0,0.00019178,2]
[382342557,1756582049750,-480.0,0.00019178,2]
[382342558,1756582049768,-606.99,0.00019178,2]
[382342559,1756582049789,-480.0,0.00019178,2]
[382342560,1756582049809,-490.47045708,0.00019178,2]
[382342561,1756582049829,-1760.09,0.00019178,2]
[382342562,1756582049849,-480.0,0.00019178,2]
[382342563,1756582049869,-480.0,0.00019178,2]
[382342564,1756582049889,-539.26,0.00019178,2]
[382342565,1756582049910,-480.0,0.00019178,2]
[382342566,1756582049929,-711.59,0.00019178,2]
[382342567,1756582049950,-547.74,0.00019178,2]
[382342568,1756582049971,-770.99,0.00019178,2]
[382342569,1756582049993,-480.0,0.00019178,2]
[382342570,1756582050015,-480.0,0.00019178,2]
[382342571,1756582050037,-581.77,0.00019178,2]
[382342572,1756582050057,-837.94,0.00019178,2]
[382342573,1756582050076,-480.0,0.00019178,2]
[382342574,1756582050096,-480.0,0.00019178,2]
[382342575,1756582050116,-480.0,0.00019178,2]
[382342576,1756582050135,-592.25776324,0.00019178,2]
[382342577,1756582050155,-480.0,0.00019178,2]
[382342578,1756582050176,-480.0,0.00019178,2]
[382342579,1756582050197,-751.07528133,0.00019178,2]
[382342580,1756582050408,-61.19471867,0.00019178,2]
[382342581,1756582050430,-164.06621407,0.00019178,2]
[382342582,1756582052068,-154.28168867,0.00019178,2]
[382342583,1756582053591,-161.65209726,0.00019178,2]
[382342584,1756582053616,-90.37426116,0.00019178,2]
[382342585,1756582055651,-219.26402932,0.00019178,2]
[382342586,1756582057928,-145.87640208,0.00019178,2]
[382342587,1756582057951,-17.47659674,0.00019178,2]
[382342588,1756582060244,-154.28168867,0.00019178,2]
[382342594,1756582062420,-217.86745343,0.00019178,2]
[382342595,1756582062443,-480.0,0.00019178,2]
[382342596,1756582062469,-10.47060881,0.00019178,2]
[382342609,1756582068056,-206.98931217,0.00019178,2]
[382342610,1756582071132,-163.32635185,0.00019078,2]
[382342611,1756582071155,-59.35359552,0.00019177,2]
[382342612,1756582071680,9900.0253851,0.00018345,2]
[382342613,1756582073827,-94.92809315,0.00019177,2]
[382342614,1756582073849,-242.21487359,0.00019178,2]
[382342615,1756582076541,-20.32520543,0.00019178,2]
[382342616,1756582076562,-146.64383138,0.00019178,2]
[382342617,1756582078267,-230.25978769,0.00019177,2]
[382342618,1756582082943,-270.93645817,0.00019177,2]
[382342619,1756582085766,-286.02769626,0.00019173,2]
[382342620,1756582087837,-213.97230374,0.00019173,2]
[382342621,1756582087859,-15.09123809,0.00019177,2]
[382342623,1756582091643,-13.97230374,0.00019177,2]
[382342624,1756582091667,-152.84604564,0.00019177,2]
[382342625,1756582112752,155.0,0.00018,30]
[382342626,1756582115403,-107.62050625,0.00019177,2]
[382342627,1756582115427,-143.35601169,0.00019177,2]
[382342628,1756582117478,-327.66965593,0.00019177,2]
[382342629,1756582119097,-28.97433238,0.00019177,2]
[382342630,1756582119122,-145.04445781,0.00019177,2]
[382342631,1756582121281,-140.98323845,0.00019177,2]
[382342632,1756582121303,-17.80941173,0.00019178,2]
[382342633,1756582123610,-162.49542098,0.00019177,2]
[382342634,1756582126747,-236.92981298,0.00019078,2]
[382342635,1756582129338,-264.00677888,0.00019078,2]
[382342636,1756582132475,-240.53584913,0.00019078,2]
[382342637,1756582134622,-105.37823159,0.00019078,2]
[382342638,1756582134645,-49.47230465,0.00019173,2]
[382342639,1756582136151,-159.80922609,0.00019173,2]
[382342640,1756582139056,-177.01210145,0.00019173,2]
[382342641,1756582143222,-156.33392893,0.00019172,2]
[382342642,1756582144776,-143.66607107,0.00019172,2]
[382342643,1756582144800,-222.62729898,0.00019173,2]
[382342644,1756582146340,-302.64966226,0.00019173,2]
[382342645,1756582150157,-421.88548426,0.00019173,2]
[382342646,1756582151835,-328.86551528,0.00019173,2]
[382342648,1756582181148,-275.256478,0.00019173,2]